Cogmind - Beta 11 @@@ ROGUE MODE // 2022.04.17 @ 11:44:54 Player: anon Result: Self-destructed Performance ------------- Evolutions (4) 2000 Regions Visited (8) 1600 Robots Destroyed (94) 470 Value Destroyed (3076) 3076 Prototype IDs (28) 560 Alien Tech Used (0) 0 Bonus (300) 300 TOTAL SCORE: 8006 Bonus ------- Aligned with FarCom 300 Cogmind --------- Core Integrity 220/850 Matter 273/300 Energy 36/160 System Corruption 14% Temperature Cool (9) Movement Core (400) Ox7 Location -6/Lower Caves Parts ------- > --- POWER (1) -------- Light Nuclear Core > --- PROPULSION (3) --- Makeshift Flight Unit > --- UTILITY (8) ------ Medium Storage Unit Advanced Sensor Array Improved Signal Interpreter Transport Network Coupler Improved Melee Analysis Suite Advanced Melee Analysis Suite Advanced Melee Analysis Suite Core Analyzer > --- WEAPON (3) ------- Power Sword Heavy Pick > --- INVENTORY (10) --- Gravmag System Nuclear Pulse Thruster Advanced Weight Redist. System Microactuators Improved Light Armor Plating Improved Hardlight Generator Long-range Missile Launcher Makeshift Spear Makeshift Spear Peak State ------------ > --- POWER ------------ Light Fission Core > --- PROPULSION ------- Gravmag System Improved Gravmag System Improved Gravmag System > --- UTILITY ---------- Medium Storage Unit Advanced Sensor Array Improved Signal Interpreter Transport Network Coupler Improved Melee Analysis Suite Advanced Melee Analysis Suite Advanced Melee Analysis Suite Core Analyzer > --- WEAPON ----------- YOLO Cannon Heavy Pick > --- INVENTORY -------- Gravmag System Advanced Weight Redist. System Improved Light Armor Plating Improved Hardlight Generator Long-range Missile Launcher Power Sword [Rating: 74] Favorites ----------- Power Improved Deuterium Engine Engine Improved Deuterium Engine Power Core Light Fission Core Propulsion Wheel Treads Armored Treads Leg Titanium Leg Wheel Wheel Hover Unit Gravmag System Flight Unit Makeshift Flight Unit Utility Core Analyzer Device Improved Sensor Array Storage High-capacity Storage Unit Processor Core Analyzer Protection Hardened Medium Armor Plating Weapon Gauss Rifle Energy Cannon YOLO Cannon Ballistic Gun Gauss Rifle Ballistic Cannon Improved Light Cannon Launcher Grenade Launcher Impact Weapon Powered Hammer Slashing Weapon Great Axe Piercing Weapon Spear Build | -11 -10 -10 -10 -9 -8 -7 -6 -6 ------- Run | Scr Mat Min Exi Min Mat Fac Fac Low Slots Evolved 8 | . . . . . 4 2 2 . Power . | . . . . . . . . . Propulsion 1 | . . . . . 1 . . . Utility 6 | . . . . . 2 2 2 . Weapon 1 | . . . . . 1 . . . Parts Attached 130 | 9 6 3 1 2 16 45 35 13 Power 15 | 1 1 . . . 1 5 4 3 Engine 8 | 1 1 . . . 1 4 1 . Core 7 | . . . . . . 1 3 3 Reactor . | . . . . . . . . . Propulsion 39 | 4 . 1 1 1 2 12 13 5 Treads 1 | . . . . . 1 . . . Leg 14 | . . . . . . 8 6 . Wheel 12 | 4 . 1 1 1 1 4 . . Hover 9 | . . . . . . . 7 2 Flight 3 | . . . . . . . . 3 Utility 39 | 2 2 1 . . 4 16 14 . Device 18 | 1 1 1 . . . 5 10 . Storage 4 | 1 1 . . . . 2 . . Processor 9 | . . . . . 1 4 4 . Hackware . | . . . . . . . . . Protection 8 | . . . . . 3 5 . . Artifact . | . . . . . . . . . Weapon 37 | 2 3 1 . 1 9 12 4 5 Energy Gun . | . . . . . . . . . Energy Cannon 1 | . . . . . . . . 1 Ballistic Gun 12 | 2 2 . . . 5 3 . . Ballistic Cannon 3 | . . . . . 3 . . . Launcher 6 | . 1 1 . 1 1 . . 2 Special Weapon . | . . . . . . . . . Impact Weapon 3 | . . . . . . 3 . . Slashing Weapon 9 | . . . . . . 5 2 2 Piercing Weapon 3 | . . . . . . 1 2 . Special Melee Weapon . | . . . . . . . . . Unidentified Prototypes 5 | . . . . . . 3 2 . Corrupted Parts 1 | . . . . . . . 1 . System Corruption 6 | . . . . . . . 6 . Parts Lost 26 | . 2 1 . . 1 7 6 9 Power 4 | . 1 . . . . . 1 2 Propulsion 10 | . . 1 . . 1 2 . 6 Utility 7 | . . . . . . 3 4 . Weapon 5 | . 1 . . . . 2 1 1 Highest Loss Streak 6 | . 2 1 . . 1 3 2 6 To Critical Strikes . | . . . . . . . . . Average Slot Usage (%) 95 | . 99 100 100 100 97 98 92 85 Engine 5 | . 13 14 14 14 9 5 1 . Core 1 | . . . . . . 1 4 . Treads 2 | . . . . . 9 3 . . Leg 6 | . . . . . . 11 9 . Wheel 8 | . 28 28 28 28 17 7 . . Hover 4 | . . . . . . . 10 13 Device 8 | . 14 14 14 14 3 8 8 6 Storage 7 | . 14 14 14 14 9 7 6 6 Processor 22 | . . . . . 5 20 33 40 Protection 4 | . . . . . 16 6 . . Ballistic Gun 8 | . 27 26 14 14 11 11 . . Ballistic Cannon 1 | . . . . . 15 . . . Launcher 1 | . . 1 14 14 . . . . Impact Weapon 4 | . . . . . . 7 4 . Slashing Weapon 2 | . . . . . . 1 5 5 Piercing Weapon 2 | . . . . . . 1 5 6 Naked Turns . | . . . . . . . . . Heaviest Build 75 | 12 49 52 52 53 72 75 31 26 Greatest Support 60 | 26 20 20 20 22 22 55 60 29 Greatest Overweight (x) 3 | . 2 2 2 2 3 3 . 1 Average Overweight (x) . | . 1 2 2 2 2 1 . . Largest Inventory Capacity 20 | 8 20 20 20 20 20 20 10 10 Average Capacity 13 | 7 17 20 20 20 20 14 10 10 Most Carried 20 | 6 11 18 20 20 20 20 10 10 Average Carried 12 | 2 9 12 19 19 19 13 8 9 Final Capacity 20 | 8 20 20 20 20 20 10 10 10 Final Carried 20 | 6 11 18 20 20 20 8 10 9 Class Distribution -------------------- 38% | Mutant 20% | Scavenger-Scout 18% | Gunner 9% | Scavenger-Mutant 5% | Skirmisher 4% | Scout Dominant Class ---------------- Mutant | -10/Materials Mutant | -10/Mines Mutant | -10/Exiles Mutant | -9/Mines Skirmisher | -8/Materials Mutant | -7/Factory Scavenger-Mutant | -6/Factory Scavenger-Scout | -6/Lower Caves Resources | -11 -10 -10 -10 -9 -8 -7 -6 -6 ----------- Run | Scr Mat Min Exi Min Mat Fac Fac Low Matter Collected 2624 | 281 164 28 . 40 225 1293 364 229 Remotely . | . . . . . . . . . Salvage Created 3868 | 100 187 49 . 47 261 1578 1542 104 Parts 194 | 9 22 5 . 4 16 56 72 10 Haulers Intercepted 10 | . 1 . . . 3 2 4 . Recyclers Shooed 3 | 1 . . . . . 2 . . Parts Field Recycled . | . . . . . . . . . Retrieved Matter . | . . . . . . . . . Parts Self-Destructed 9 | . . . . . . . . 9 Prevented . | . . . . . . . . . Kills | -11 -10 -10 -10 -9 -8 -7 -6 -6 ------- Run | Scr Mat Min Exi Min Mat Fac Fac Low Combat Hostiles Destroyed 66 | . 5 4 . 2 6 24 19 6 Melee 26 | . . . . . . 8 16 2 Guns 19 | . 2 1 . . 2 14 . . Cannons 2 | . . . . . 2 . . . AOE 14 | . 3 3 . 2 2 . . 4 Classes Destroyed 12 | 2 6 . . . 1 3 . . Worker 2 | . 1 . . . . . 1 . Builder 2 | . 1 . . . . 1 . . Tunneler 2 | 2 . . . . . . . . Hauler 10 | . 1 . . . 3 2 4 . Recycler 4 | 1 . . . . . 2 1 . Operator 3 | . . . . . . 2 1 . Watcher 5 | . 1 . . . . 1 3 . Swarmer 23 | . 3 3 . . 3 2 6 6 Grunt 23 | . 2 1 . 2 1 13 4 . Sentry 11 | . . . . . 2 5 4 . Hunter 6 | . . . . . . 2 4 . Programmer 3 | . . . . . . 2 1 . Best Kill Streak 5 | 3 5 3 . 2 3 4 5 4 Combat Bots Only 4 | . 3 3 . 2 3 3 4 4 Max Kills in Single Turn 3 | 1 2 1 . 2 1 1 1 3 Gunslinging . | . . . . . . . . . Exploded 3 | . 2 1 . 2 1 . . 3 Melee 1 | . . . . . . 1 1 1 Uniques/NPCs Destroyed . | . . . . . . . . . Combat | -11 -10 -10 -10 -9 -8 -7 -6 -6 -------- Run | Scr Mat Min Exi Min Mat Fac Fac Low Damage Taken 5139 | . 238 141 . . 252 2384 1466 658 Core 860 | . 10 33 . . 14 173 381 249 Absorbed by Shields 204 | . . . . . . . 204 . Redirected to Shielding 9 | . . . . . 9 . . . Core Remaining (%) 88 | 100 . . . 82 97 75 . . Volleys Fired 109 | 9 17 10 . 2 17 49 . 5 Largest 3 | 2 2 2 . 1 3 3 . 1 Hottest 108 | 40 40 40 . 33 108 84 . 100 Shots Fired 263 | 18 32 17 . 2 42 147 . 5 Gun 223 | 18 30 14 . . 14 147 . . Cannon 26 | . . . . . 25 . . 1 Launcher 14 | . 2 3 . 2 3 . . 4 Special . | . . . . . . . . . Kinetic 248 | 18 30 14 . . 39 147 . . Thermal 1 | . . . . . . . . 1 Explosive 14 | . 2 3 . 2 3 . . 4 Electromagnetic . | . . . . . . . . . Robot Hit Streak 21 | 4 8 9 . 2 8 21 . 1 Robot Miss Streak 4 | 2 4 1 . . 3 3 . 1 Penetration Max . | . . . . . . . . . Secondary Targets 2 | . . . . . . 2 . . Max Gunslinging Chain 1 | . . . . . . 1 . . Shots Hit Robots 291 | 10 21 12 . 1 22 149 72 4 Core Hits 123 | 5 11 7 . 3 12 51 28 6 Critical Kills 2 | . . . . . . 2 . . Critical Parts Destroyed 11 | . . . . . . 7 4 . Critical Strikes 22 | . . . . . 1 10 11 . Destroy 1 | . . . . . . 1 . . Blast 1 | . . . . . 1 . . . Smash 12 | . . . . . . 8 4 . Sever 4 | . . . . . . 1 3 . Impale 4 | . . . . . . . 4 . Melee Attacks 163 | . . . . . . 62 86 15 Impact 43 | . . . . . . 28 15 . Slashing 49 | . . . . . . 18 23 8 Piercing 71 | . . . . . . 16 48 7 Sneak Attacks 16 | . . . . . . 7 9 . Combat Hostiles . | . . . . . . . . . Follow-up Attacks 18 | . . . . . . 5 13 . Damage Inflicted 9454 | 124 455 279 . 162 671 3884 3333 546 Guns 2609 | 124 211 78 . . 126 2070 . . Cannons 308 | . . . . . 308 . . . Explosions 1238 | . 244 201 . 162 237 . . 394 Melee 5299 | . . . . . . 1814 3333 152 Ramming . | . . . . . . . . . Kinetic 2917 | 124 211 78 . . 434 2070 . . Thermal 113 | . 75 . . . . . . 38 Explosive 1125 | . 169 201 . 162 237 . . 356 Electromagnetic . | . . . . . . . . . Impact 1233 | . . . . . . 787 446 . Slashing 1828 | . . . . . . 558 1118 152 Piercing 2238 | . . . . . . 469 1769 . Highest Corruption 14 | . . . . . . 2 14 14 Average Corruption 6 | . . . . . . 1 10 14 Corruption Purged . | . . . . . . . . . Corruption Blocked . | . . . . . . . . . Effects 108 | . . . . . . 28 32 48 Message Errors 25 | . . . . . . 5 13 7 Matter Fused 29 | . . . . . . 9 6 14 Heat Flow Errors 11 | . . . . . . 3 1 7 Energy Discharges 16 | . . . . . . 3 4 9 Parts Rejected 2 | . . . . . . 2 . . Data Loss (minor) 12 | . . . . . . 5 4 3 Data Loss (major) 8 | . . . . . . 1 3 4 Misdirections 5 | . . . . . . . 1 4 Overload Shots . | . . . . . . . . . Overflow Damage 1099 | . 24 5 . . 13 534 518 5 Projectiles 7 | . . . . . . 7 . . Explosions 47 | . 24 5 . . 13 . . 5 Melee 1045 | . . . . . . 527 518 . Knockbacks 11 | . . . . . 2 7 2 . Impact 8 | . . . . . . 6 2 . Kinetic 2 | . . . . . 2 . . . Secondary 1 | . . . . . . 1 . . Self-Inflicted Damage 205 | . 78 . . . 127 . . . Shots 4 | . 1 . . . 3 . . . Rammed . | . . . . . . . . . Targets Rammed . | . . . . . . . . . Kicked . | . . . . . . . . . Crushed . | . . . . . . . . . Highest Temperature 375 | . 18 36 . . 375 255 140 233 Average Temperature 77 | . 7 20 . . 127 64 70 94 Received Heat Transfer 1166 | . 72 72 . . 36 756 167 63 Effects 2 | . . . . . 1 1 . . Shutdowns 1 | . . . . . 1 . . . Interference 1 | . . . . . . 1 . . Siege Activations . | . . . . . . . . . Robots Corrupted . | . . . . . . . . . Combat Hostiles . | . . . . . . . . . Parts Fried 10 | . . . . . . 8 2 . Impact Corruptions 25 | . . . . . . 16 9 . Robots Melted . | . . . . . . . . . Combat Hostiles . | . . . . . . . . . Parts Melted . | . . . . . . . . . Heat Transferred 180 | . 100 . . . . . . 80 Parts Sabotaged . | . . . . . . . . . Parts Stolen . | . . . . . . . . . Parts Stripped . | . . . . . . . . . Power Chain Reactions . | . . . . . . . . . Missiles Intercepted . | . . . . . . . . . Alert | -11 -10 -10 -10 -9 -8 -7 -6 -6 ------- Run | Scr Mat Min Exi Min Mat Fac Fac Low Peak Influence 399 | 15 304 265 . 136 261 265 399 . Initial 118 | . 9 118 . . 52 51 114 . Average 127 | 4 201 157 . 10 138 84 211 . Maximum Alert Level 1 | . 1 1 . . 1 1 1 . Low Security (%) 78 | 100 31 91 . 100 81 97 43 . Level 1 21 | . 68 8 . . 18 2 56 . Level 2 . | . . . . . . . . . Level 3 . | . . . . . . . . . Level 4 . | . . . . . . . . . Level 5 . | . . . . . . . . . High Security . | . . . . . . . . . Max Security . | . . . . . . . . . Squads Dispatched 20 | . . . . . 1 15 4 . Investigation 3 | . . . . . . 3 . . Extermination 4 | . . . . . . 3 1 . Reinforcement 9 | . . . . . 1 5 3 . Assault . | . . . . . . . . . Garrison 4 | . . . . . . 4 . . Intercept . | . . . . . . . . . Searches Triggered . | . . . . . . . . . Construction Impeded . | . . . . . . . . . Haulers Reinforced 1 | . . . . . . 1 . . Active Scanning Responses . | . . . . . . . . . Cargo Convoy Interrupts . | . . . . . . . . . Stealth | -11 -10 -10 -10 -9 -8 -7 -6 -6 --------- Run | Scr Mat Min Exi Min Mat Fac Fac Low Distress Signals 4 | . . . . . 2 2 . . Communications Jammed . | . . . . . . . . . Distress Signals . | . . . . . . . . . Times Spotted 113 | . 6 5 . 2 11 40 32 17 Peak Tracking Total 7 | . 3 3 . 2 3 6 4 7 Tactical Retreats 8 | . . 1 . . . . 3 4 Traps | -11 -10 -10 -10 -9 -8 -7 -6 -6 ------- Run | Scr Mat Min Exi Min Mat Fac Fac Low Traps Triggered 11 | . . 1 . . . 6 4 . Indirectly . | . . . . . . . . . Trap Hack Attempts . | . . . . . . . . . Triggered . | . . . . . . . . . Disarmed . | . . . . . . . . . Reprogrammed . | . . . . . . . . . Reused . | . . . . . . . . . Traps Extracted . | . . . . . . . . . Installed . | . . . . . . . . . Triggered . | . . . . . . . . . Machines | -11 -10 -10 -10 -9 -8 -7 -6 -6 ---------- Run | Scr Mat Min Exi Min Mat Fac Fac Low Machines Disabled 11 | . 4 . . 1 2 4 . . Max in Single Turn 4 | . 4 . . 1 1 1 . . Garrison Access 2 | . . . . . . 1 1 . Machines Sabotaged . | . . . . . . . . . Garrisons Compromised . | . . . . . . . . . Overloaded Fab Kills . | . . . . . . . . . Hacking | -11 -10 -10 -10 -9 -8 -7 -6 -6 --------- Run | Scr Mat Min Exi Min Mat Fac Fac Low Machines Accessed 24 | . 1 1 1 1 5 8 6 1 Terminals 11 | . 1 . . 1 5 1 3 . Fabricators 2 | . . . . . . 2 . . Repair Stations 1 | . . . . . . . 1 . Recycling Units 1 | . . . . . . 1 . . Scanalyzers 1 | . . . . . . 1 . . Garrison Access 5 | . . . . . . 3 2 . Total Hacks 46 | . 2 1 1 2 11 17 11 1 Successful 16 | . 1 1 1 1 2 6 3 1 Failed 30 | . 1 . . 1 9 11 8 . Catastrophic 3 | . . . . . 1 1 1 . Database Lockouts . | . . . . . . . . . Manual 25 | . 2 . 1 2 11 3 6 . Terminals 24 | . 2 . . 2 11 3 6 . Fabricators 2 | . . . . . . 2 . . Repair Stations 2 | . . . . . . . 2 . Recycling Units 1 | . . . . . . 1 . . Scanalyzers 5 | . . . . . . 5 . . Garrison Access 9 | . . . . . . 6 3 . Terminal Hacks 8 | . 1 1 1 1 2 . 1 1 Open Door 2 | . . 1 . . . . . 1 Recall Reinforcements 1 | . . . . . 1 . . . Hauler Manifests 3 | . 1 . . . 1 . 1 . Zone Layout 1 | . . . . 1 . . . . EX-Prototype ID Bank 1 | . . . 1 . . . . . Fabricator Hacks 2 | . . . . . . 2 . . Network Status 2 | . . . . . . 2 . . Repair Station Hacks 1 | . . . . . . . 1 . Scan Component 1 | . . . . . . . 1 . Recycling Unit Hacks 1 | . . . . . . 1 . . Report Inventory 1 | . . . . . . 1 . . Scanalyzer 2 | . . . . . . 2 . . Insert Component 2 | . . . . . . 2 . . Garrison Access Hacks 2 | . . . . . . 1 1 . Seal Access 2 | . . . . . . 1 1 . Unauthorized Hacks . | . . . . . . . . . Terminals . | . . . . . . . . . Fabricators . | . . . . . . . . . Repair Stations . | . . . . . . . . . Recycling Units . | . . . . . . . . . Scanalyzers . | . . . . . . . . . Garrison Access . | . . . . . . . . . Data Cores Recovered 1 | . . . . . . 1 . . Used . | . . . . . . . . . Hacking Detections 18 | . 1 . . 1 4 7 5 . Full Trace Events 2 | . . . . . . 2 . . Feedback Events . | . . . . . . . . . Feedback Blocked . | . . . . . . . . . Robot Schematics Acquired . | . . . . . . . . . Robots Built . | . . . . . . . . . Authchips . | . . . . . . . . . Time . | . . . . . . . . . Total Robot Build Rating . | . . . . . . . . . Part Schematics Acquired . | . . . . . . . . . Parts Built . | . . . . . . . . . Authchips . | . . . . . . . . . Time . | . . . . . . . . . Total Part Build Rating . | . . . . . . . . . Parts Repaired . | . . . . . . . . . Time . | . . . . . . . . . Parts Recycled . | . . . . . . . . . Recycled Matter . | . . . . . . . . . Retrieved Matter . | . . . . . . . . . Retrieved Components . | . . . . . . . . . Parts Scanalyzed 1 | . . . . . . 1 . . Part Schematics Acquired . | . . . . . . . . . Parts Damaged . | . . . . . . . . . Bothacking | -11 -10 -10 -10 -9 -8 -7 -6 -6 ------------ Run | Scr Mat Min Exi Min Mat Fac Fac Low Used RIF Installer . | . . . . . . . . . Robots Hacked . | . . . . . . . . . Non-combat . | . . . . . . . . . Combat . | . . . . . . . . . Robot Hacks Applied . | . . . . . . . . . Relay Couplers Released . | . . . . . . . . . Fabnet Peak Effective % . | . . . . . . . . . Robots Rewired . | . . . . . . . . . Allies Hacked . | . . . . . . . . . Hacks Repelled . | . . . . . . . . . Allies | -11 -10 -10 -10 -9 -8 -7 -6 -6 -------- Run | Scr Mat Min Exi Min Mat Fac Fac Low Total Allies . | . . . . . . . . . Largest Group . | . . . . . . . . . Highest-Rated Group . | . . . . . . . . . Highest-Rated Ally . | . . . . . . . . . Total Orders 2 | . . . . . . . 2 . EXPLORE 2 | . . . . . . . 2 . Ally Attacks . | . . . . . . . . . Total Damage . | . . . . . . . . . Kills . | . . . . . . . . . Allies Corrupted . | . . . . . . . . . Allies Melted . | . . . . . . . . . Intel | -11 -10 -10 -10 -9 -8 -7 -6 -6 ------- Run | Scr Mat Min Exi Min Mat Fac Fac Low Robot Analysis Total . | . . . . . . . . . Derelict Logs Recovered 5 | . . 2 . 1 . . . 2 Drone Launches 2 | . . . . . . . 2 . Drone Recoveries 1 | . . . . . . . 1 . Exploration | -11 -10 -10 -10 -9 -8 -7 -6 -6 ------------- Run | Scr Mat Min Exi Min Mat Fac Fac Low Turns Passed 7719 | 95 306 308 249 261 634 3036 1596 1234 Spaces Moved 6345 | 54 215 238 219 211 354 1798 1427 1829 Core 2 | 2 . . . . . . . . Treads . | . . . . . . . . . Legs 1399 | . . . . . . 923 476 . Wheels 2164 | 52 215 238 219 211 354 875 . . Hover 2780 | . . . . . . . 951 1829 Flight . | . . . . . . . . . Fastest Speed 48 | 50 80 110 110 110 115 90 48 48 Average Speed 91 | 85 103 110 110 112 127 126 73 55 Slowest Speed 200 | 100 110 110 110 115 130 200 130 116 Overloaded Moves . | . . . . . . . . . Propulsion Burnouts . | . . . . . . . . . Robots Hopped . | . . . . . . . . . Cave-ins Triggered . | . . . . . . . . . Exploration Rate (%) 49 | 4 31 58 60 65 40 39 49 97 Regions Visited 8 Branch Regions 4 Pre-discovered Areas 2 | . . 2 . . . . . . Known Exits Taken 3 | . . . . . 1 1 1 . Unknown Exits Taken 5 | 1 1 1 1 1 . . . . Scrap Searched 13 | . . 3 . 1 . . . 9 Spaces Dug 22 | . . . . . . 4 2 16 Terrain Destroyed 209 | . 46 15 . 27 44 9 2 66 Melee 11 | . . . . . . 4 2 5 Projectile 10 | . . . . . 4 5 . 1 AOE 188 | . 46 15 . 27 40 . . 60 Terrain Rammed . | . . . . . . . . . Walls Destroyed . | . . . . . . . . . Machines Disabled . | . . . . . . . . . Actions | -11 -10 -10 -10 -9 -8 -7 -6 -6 --------- Run | Scr Mat Min Exi Min Mat Fac Fac Low Total 7818 | 82 269 269 228 233 510 2366 1852 2009 Wait 905 | 5 25 11 . 13 89 355 272 135 Move 6337 | 53 214 237 218 210 353 1797 1426 1829 Hop . | . . . . . . . . . Pick Up 85 | 5 6 7 5 2 14 25 13 8 Fast Attach 74 | 7 . 1 . 2 9 27 24 4 Attach 31 | . 3 1 . . 4 10 5 8 Detach 14 | . 1 1 . . 3 5 2 2 Swap 26 | 2 3 1 1 . 3 9 6 1 Drop 100 | 1 . . 4 4 18 42 27 4 Fire 109 | 9 17 10 . 2 17 49 . 5 Melee 124 | . . . . . . 47 64 13 Ram . | . . . . . . . . . Kick . | . . . . . . . . . Crush . | . . . . . . . . . Escape Stasis 13 | . . . . . . . 13 . Rewire . | . . . . . . . . . Trap . | . . . . . . . . . Miscellaneous . | . . . . . . . . . Route ------- -11/Scrapyard -10/Materials (discovered 2 exits: [*Mat] / *Min) -10/Mines (discovered 2 exits: [*Mat] / *Exi) -10/Exiles -9/Mines -8/Materials -7/Factory -6/Factory (discovered 2 exits: *Fac / *Low) -6/Lower Caves History --------- Turn | Location | Event 6 | -11/Scrapyard | Discovered new exit (range 15) 96 | -11/Scrapyard | Entered Materials 170 | -10/Materials | Discovered new exit (range 7) 318 | -10/Materials | Build established: Mutant 344 | -10/Materials | Discovered new exit (range 12) 402 | -10/Materials | Entered Mines 457 | -10/Mines | Learned location of Storage (-9) 552 | -10/Mines | Met a Derelict bent on vengeance 585 | -10/Mines | Learned location of Zion (-6) 593 | -10/Mines | Discovered new exit (range 10) 628 | -10/Mines | Learned 2 Materials zone layouts 639 | -10/Mines | Met a Derelict who couldn't figure out how to use a Trap Extractor 703 | -10/Mines | Deemed a non-threat by the Exiles lab entrance 704 | -10/Mines | Discovered new exit (range 5) 710 | -10/Mines | Entered Exiles 740 | -10/Exiles | Met 8R-AWN 763 | -10/Exiles | Met EX-HEX 795 | -10/Exiles | Met EX-BIN 812 | -10/Exiles | Aligned with FarCom system 813 | -10/Exiles | Given EX-Vault access code 838 | -10/Exiles | Opened EX-Vault 848 | -10/Exiles | Found Supersonic Drone Bay 852 | -10/Exiles | Found YOLO Cannon 876 | -10/Exiles | Warned to stay clear of 0b10 Research branches 888 | -10/Exiles | Exiles lab attacked by MAIN.C 948 | -10/Exiles | Discovered new exit (range 11) 959 | -10/Exiles | Stole two prototypes: Supersonic Drone Bay, YOLO Cannon 959 | -10/Exiles | Entered Mines 1101 | -9/Mines | Learned Materials terminal intel 1155 | -9/Mines | Received a Rocket Launcher from a helpful Derelict 1184 | -9/Mines | Found a damaged Exp. Sensor Array with a note attached 1187 | -9/Mines | Found Prototype Device 1209 | -9/Mines | Discovered new exit (range 9) 1220 | -9/Mines | Entered Materials 1220 | -8/Materials | Evolved 4 slots: Propulsion x1, Utility x2, Weapon x1 1221 | -8/Materials | Identified exit to Factory 1222 | -8/Materials | Loaded intel: 12 terminal locations 1846 | -8/Materials | Build established: Skirmisher 1854 | -8/Materials | Entered Factory 1854 | -7/Factory | Evolved 2 slots: Utility x2 1854 | -7/Factory | Identified Exp. Sensor Array 1856 | -7/Factory | FarCom data flow suspended 2153 | -7/Factory | Build established: Gunner 2616 | -7/Factory | Garrison activated, responded to threat 3580 | -7/Factory | Build established: Mutant 4851 | -7/Factory | Garrison activated, responded to threat 4881 | -7/Factory | Discovered new exit (range 8) 4888 | -7/Factory | Identified exit to Factory 4890 | -7/Factory | Entered another Factory area 4890 | -6/Factory | Evolved 2 slots: Utility x2 4900 | -6/Factory | Lost 3 parts (1n2u) 5330 | -6/Factory | Build established: Scavenger-Mutant 5682 | -6/Factory | System corruption reached 10% 5817 | -6/Factory | Discovered new exit (range 8) 5820 | -6/Factory | Identified exit to Factory 6102 | -6/Factory | Build established: Scavenger-Scout 6176 | -6/Factory | Spotted B-75 Beast 6484 | -6/Factory | Discovered new exit (range 3) 6485 | -6/Factory | Identified exit to Lower Caves 6486 | -6/Factory | Entered Lower Caves 6514 | -6/Lower Caves | Encountered a Warlord checkpoint 6516 | -6/Lower Caves | Learned Factory machine intel 6545 | -6/Lower Caves | Learned Factory terminal intel 6546 | -6/Lower Caves | Attracted the attention of an 0b10 outpost 6608 | -6/Lower Caves | Build established: Scout 6631 | -6/Lower Caves | Core integrity fell below 50% 6666 | -6/Lower Caves | Lost 6 parts (2p3n1w) 6910 | -6/Lower Caves | Build established: Scavenger-Scout 7720 | -6/Lower Caves | Self-destructed Last Messages --------------- 07432_ System corrupted: Energy discharge (-30). 07460_ System corrupted: Energy discharge (-12). 07488_ System corrupted: Matter fused (-9). 07509_ System corrupted: Component data lost. 07527_ TYR3CV4MX